bitfinex-derivatives/quotes_SOLF0:USTF0_20251024
["timestamp","ask_amount","ask_price","bid_price","bid_amount"]
[1761289805861,2.8,192.99,192.96,4.6633]
[1761289806860,2.8,193.02,192.97,2.3607991]
[1761289807060,7.05497843,193.01,192.97,2.3607991]
[1761289807263,2.8,193.01,192.97,2.3607991]
[1761289807662,2.8,193.01,192.97,7.0236991]
[1761289808263,4.26339532,193.0,192.97,7.0236991]
[1761289808565,2.8,193.01,192.97,7.0236991]
[1761289808760,4.26356489,193.0,192.97,7.0236991]
[1761289808967,2.8,193.01,192.97,7.0236991]
[1761289809268,4.26372897,193.0,192.97,7.0236991]
[1761289809466,4.26372897,192.99,192.97,7.0236991]
[1761289809666,2.8,193.01,192.97,7.0236991]
[1761289809967,4.2707567,193.0,192.97,7.0236991]
[1761289810167,4.2707567,192.99,192.97,7.0236991]
[1761289810364,2.8,193.01,192.97,7.0236991]
[1761289810561,4.27137598,193.0,192.97,7.0236991]
[1761289810760,4.27137598,192.99,192.97,7.0236991]
[1761289810957,4.82359033,193.03,192.97,7.0236991]
[1761289811261,11.93525961,193.02,192.97,7.0236991]
[1761289811460,9.13525961,193.01,192.97,7.0236991]
[1761289811658,4.2715421,193.0,192.97,7.0236991]
[1761289811857,4.2715421,192.99,192.97,7.0236991]
[1761289812058,2.8,193.02,192.97,7.0236991]
[1761289812262,9.13668599,193.01,192.97,7.0236991]
[1761289812561,4.27248776,193.0,192.97,7.0236991]
[1761289812761,4.27248776,192.99,192.97,7.0236991]
[1761289812961,2.8,193.02,192.97,7.0236991]
[1761289813262,9.13790859,193.01,192.97,7.0236991]
[1761289813462,4.2725658,193.0,192.97,7.0236991]
[1761289813767,4.2725658,192.99,192.97,7.0236991]
[1761289813972,2.8,193.02,192.97,7.0236991]
[1761289814165,9.14189539,193.01,192.97,7.0236991]
[1761289814364,4.27439751,193.0,192.97,7.0236991]
[1761289814568,4.27439751,192.99,192.97,7.0236991]
[1761289814765,4.27439751,192.98,192.97,7.0236991]
[1761289814961,4.27439751,192.98,192.97,4.6629]
[1761289818476,2.8,193.02,192.97,4.6629]
[1761289818663,9.12367759,193.01,192.97,4.6629]
[1761289818869,4.25647663,193.0,192.97,4.6629]
[1761289819070,4.25647663,192.99,192.97,4.6629]
[1761289819270,7.62359033,193.03,192.97,4.6629]
[1761289819467,11.92373865,193.02,193.01,2.3607991]
[1761289820274,9.12373865,193.02,193.01,2.3607991]
[1761289821080,9.12373865,193.02,192.98,4.6627]
[1761289821289,2.8,193.04,193.01,2.3607991]
[1761289821476,11.86514873,193.03,193.01,2.3607991]
[1761289821786,11.86514873,193.02,193.01,2.3607991]
[1761289822581,9.48459033,193.06,193.01,2.3607991]
[1761289822787,4.40999828,193.05,193.01,2.3607991]
[1761289822988,4.40999828,193.04,193.01,2.3607991]
[1761289823287,9.48459033,193.06,193.01,2.3607991]
[1761289823486,4.40991898,193.05,193.01,2.3607991]
[1761289823688,4.40991898,193.04,193.01,2.3607991]
[1761289823889,9.48459033,193.06,193.01,2.3607991]
[1761289824085,4.40991898,193.05,193.01,2.3607991]
[1761289824294,4.40991898,193.04,193.01,2.3607991]
[1761289824487,2.8,193.05,193.01,2.3607991]
[1761289824688,2.8,193.03,193.01,2.3607991]
[1761289825691,2.8,193.03,192.98,4.6627]
[1761289825893,2.8,193.03,193.02,2.3607991]
[1761289827495,2.8,193.05,193.02,2.3607991]
[1761289827793,2.8,193.03,193.02,2.3607991]
[1761289827995,2.8,193.05,193.02,2.3607991]
[1761289828286,7.21001986,193.04,193.02,2.3607991]
[1761289828493,2.8,193.04,193.02,2.3607991]
[1761289832701,2.8,193.04,192.98,4.6627]
[1761289832901,2.8,193.04,193.0,2.3607991]
[1761289834489,4.13628689,193.03,193.0,2.3607991]
[1761289834694,4.13628689,193.02,193.0,2.3607991]
[1761289834999,2.81,193.03,193.0,2.3607991]
[1761289836498,2.81,193.03,193.0,7.0229991]
[1761289839906,4.40606144,193.05,193.0,2.3607991]
[1761289840200,2.81,193.03,193.0,2.3607991]
[1761289841501,2.81,193.03,192.95,42.96]
[1761289841703,2.81,193.03,192.99,2.3607991]
[1761289841905,2.81,193.01,192.99,2.3607991]
[1761289844697,2.81,193.01,193.0,1.51085588]
[1761289844901,6.94466254,193.01,193.0,1.51085588]
[1761289848208,2.81,193.0,192.97,4.6629]
[1761289848508,2.81,193.0,192.99,1.51085588]
[1761289848708,6.94599483,193.0,192.99,1.51085588]
[1761289852010,2.81,193.0,192.99,1.51085588]
[1761289855504,2.81,193.0,192.97,6.17375588]
[1761289856307,2.81,193.0,192.97,1.51085588]
[1761289856710,2.81,193.0,192.99,1.51085588]
[1761289856911,6.94791256,193.0,192.99,1.51085588]
[1761289857203,2.81,192.99,192.94,47.6035]
[1761289857407,2.81,192.99,192.97,1.51085588]
[1761289859214,2.62,192.97,192.89,0.90199839]
[1761289859407,2.62,192.95,192.93,1.51085588]
[1761289859912,6.8324837,192.94,192.93,1.51085588]
[1761289861613,6.8324837,192.94,192.9,1.51085588]
[1761289861813,6.34853722,192.99,192.9,1.51085588]
[1761289861814,2.62,192.93,192.9,1.51085588]
[1761289862008,2.62,192.93,192.88,1.51085588]
[1761289862214,2.62,192.91,192.86,4.6655]
[1761289862413,2.62,192.91,192.87,1.51085588]
[1761289863106,2.62,192.91,192.89,1.51085588]
[1761289863508,2.62,192.93,192.89,1.51085588]
[1761289866010,2.62,192.93,192.91,1.51085588]
[1761289868715,2.62,192.93,192.92,1.51085588]
[1761289869218,2.62,192.96,192.92,1.51085588]
[1761289869425,2.62,192.96,192.95,1.51085588]
[1761289869617,6.83096416,192.96,192.95,1.51085588]
[1761289869813,2.62,192.96,192.95,1.51085588]
[1761289876014,2.62,192.96,192.84,62.0]
[1761289876015,2.62,192.95,192.86,4.6655]
[1761289876219,2.62,192.95,192.92,1.51085588]
[1761289876819,2.62,192.93,192.9,1.51085588]
[1761289881925,2.62,192.93,192.89,1.51085588]
[1761289882233,2.62,192.92,192.89,1.51085588]
[1761289882526,4.6645,192.91,192.84,1.51085588]
[1761289882726,2.62,192.9,192.86,1.51085588]
[1761289884130,2.62,192.9,192.83,4.6662]
[1761289884327,2.62,192.9,192.88,1.51085588]
[1761289890737,2.81,192.91,192.88,1.51085588]
[1761289896042,2.81,192.89,192.85,1.51085588]
[1761289897735,2.81,192.89,192.82,4.6666]
[1761289897936,2.81,192.89,192.84,1.51085588]
[1761289898936,2.81,192.89,192.86,1.51085588]
[1761289902146,2.81,192.89,192.82,4.6666]
[1761289902444,2.81,192.89,192.86,1.51085588]
[1761289902642,2.81,192.89,192.88,1.51085588]
[1761289903145,7.03344774,192.89,192.88,1.51085588]
[1761289904543,7.03344774,192.89,192.86,1.51085588]
[1761289904742,2.81,192.89,192.84,7.0302258]
[1761289907137,4.6643,192.92,192.84,7.0302258]
[1761289907350,7.03658356,192.91,192.87,2.3642258]
[1761289907541,4.22658356,192.9,192.87,2.3642258]
[1761289907741,4.22658356,192.89,192.87,2.3642258]
[1761289907941,2.81,192.91,192.87,2.3642258]
[1761289908136,4.22658356,192.9,192.87,2.3642258]
[1761289908345,4.22658356,192.89,192.87,2.3642258]
[1761289908649,2.81,192.91,192.87,2.3642258]
[1761289908844,7.03657253,192.9,192.87,2.3642258]
[1761289909043,4.22657253,192.89,192.87,2.3642258]
[1761289909243,2.81,192.9,192.87,2.3642258]
[1761289909448,4.22668054,192.89,192.87,2.3642258]
[1761289909650,2.81,192.9,192.87,2.3642258]
[1761289909949,4.22668054,192.89,192.87,2.3642258]
[1761289910250,2.81,192.9,192.87,2.3642258]
[1761289910447,4.22673718,192.89,192.87,2.3642258]
[1761289910647,2.81,192.9,192.87,2.3642258]
[1761289912051,2.81,192.9,192.84,4.666]
[1761289912250,2.81,192.9,192.86,2.3642258]
[1761289912646,2.81,192.9,192.8,0.90248963]
[1761289912852,2.81,192.88,192.8,3.26671543]
[1761289913051,2.81,192.86,192.8,3.26671543]
[1761289913751,2.81,192.89,192.81,2.3642258]
[1761289913947,7.03660954,192.88,192.81,2.3642258]
[1761289914149,4.22660954,192.87,192.81,2.3642258]
[1761289914353,2.81,192.88,192.81,2.3642258]
[1761289914554,4.22689738,192.87,192.81,2.3642258]
[1761289914754,2.81,192.88,192.81,2.3642258]
[1761289914954,4.22690013,192.87,192.81,2.3642258]
[1761289915142,2.81,192.88,192.81,2.3642258]
[1761289915348,4.22689963,192.87,192.81,2.3642258]
[1761289915651,2.81,192.88,192.81,2.3642258]
[1761289915952,4.22743434,192.87,192.82,4.6666]
[1761289916155,2.81,192.87,192.82,4.6666]
[1761289917459,2.81,192.91,192.84,2.3642258]
[1761289917656,4.22911666,192.9,192.84,2.3642258]
[1761289917853,4.22911666,192.89,192.84,2.3642258]
[1761289918052,4.22911666,192.88,192.84,2.3642258]
[1761289918253,2.81,192.91,192.83,4.6662]
[1761289918456,7.04111233,192.9,192.84,2.3642258]
[1761289918755,2.81,192.88,192.84,2.3642258]
[1761289919857,2.84,192.86,192.83,4.6662]
[1761289920256,2.84,192.86,192.81,7.0311258]
[1761289921847,2.84,192.89,192.81,7.0311258]
[1761289922054,4.30336359,192.88,192.81,4.6669]
[1761289922253,4.30336359,192.87,192.81,49.9911258]
[1761289922558,4.30336359,192.86,192.81,49.9911258]
[1761289922857,2.84,192.89,192.81,49.9911258]
[1761289923059,7.14437066,192.88,192.81,49.9911258]
[1761289923357,4.30437066,192.87,192.81,49.9911258]
[1761289923558,4.30437066,192.86,192.81,49.9911258]
[1761289923852,2.84,192.88,192.81,7.0311258]
[1761289924056,4.3049112,192.87,192.82,4.6665]
[1761289924252,2.84,192.88,192.82,4.6665]
[1761289924453,4.30571876,192.87,192.84,2.3642258]
[1761289924654,4.83768134,192.91,192.82,4.6665]
[1761289924957,16.45045205,192.9,192.84,2.3642258]
[1761289925152,2.84,192.88,192.84,2.3642258]
[1761289925353,7.14618425,192.87,192.83,42.96]
[1761289925554,4.30618425,192.86,192.83,42.96]
[1761289925756,2.84,192.87,192.83,42.96]
[1761289925957,4.30624745,192.86,192.83,42.96]
[1761289926157,2.84,192.87,192.83,42.96]
[1761289926353,4.30661117,192.86,192.83,42.96]
[1761289926549,2.84,192.87,192.83,42.96]
[1761289926858,2.84,192.85,192.83,42.96]
[1761289929054,4.3053823,192.84,192.83,42.96]
[1761289929562,2.84,192.88,192.83,42.96]
[1761289929861,2.84,192.86,192.83,42.96]
[1761289930062,7.14504779,192.85,192.82,42.96]
[1761289930256,2.84,192.85,192.82,42.96]
[1761289932162,2.84,192.88,192.82,42.96]
[1761289932359,12.0201412,192.87,192.82,42.96]
[1761289932561,7.14472039,192.86,192.82,42.96]
[1761289932760,4.30472039,192.85,192.82,42.96]
[1761289932959,4.30461173,192.84,192.82,42.96]
[1761289933258,2.84,192.86,192.82,42.96]
[1761289933460,4.30422988,192.85,192.82,42.96]
[1761289933657,4.30422988,192.84,192.82,42.96]
[1761289933858,2.84,192.86,192.82,42.96]
[1761289934053,7.14422988,192.85,192.82,42.96]
[1761289934257,4.30422988,192.84,192.82,42.96]
[1761289934458,4.28985349,192.83,192.82,42.96]
[1761289935165,2.84,192.85,192.82,42.96]
[1761289935366,4.28739975,192.84,192.82,42.96]
[1761289935567,2.84,192.86,192.82,42.96]
[1761289935766,7.12740321,192.85,192.82,42.96]
[1761289936064,4.28740321,192.84,192.82,42.96]
[1761289936265,2.84,192.85,192.82,42.96]
[1761289936468,4.28708616,192.84,192.82,42.96]
[1761289936670,2.84,192.85,192.82,42.96]
[1761289936857,4.28708616,192.84,192.82,42.96]
[1761289937062,2.84,192.82,192.79,4.6673]
[1761289937366,2.84,192.86,192.8,42.92]
[1761289937566,2.84,192.84,192.8,42.92]
[1761289937767,4.28651512,192.83,192.8,42.92]
[1761289937969,2.84,192.83,192.8,42.92]
[1761289949570,2.71,192.81,192.8,42.92]
[1761289949775,6.98925088,192.81,192.8,42.92]
[1761289949972,2.71,192.8,192.76,0.90263008]
[1761289950172,2.71,192.8,192.77,42.92]
[1761289950879,2.71,192.8,192.77,45.2842258]
[1761289952170,2.71,192.8,192.77,42.92]
[1761289954377,4.6666,192.83,192.77,42.92]
[1761289954581,4.26456949,192.82,192.77,42.92]
[1761289954782,4.6666,192.83,192.77,42.92]
[1761289954978,2.61,192.81,192.77,42.92]
[1761289957173,4.25959428,192.8,192.77,42.92]
[1761289957377,2.61,192.8,192.77,42.92]
[1761289959773,4.80069551,192.84,192.78,2.3642258]
[1761289960085,2.61,192.82,192.78,2.3642258]
[1761289961483,2.61,192.82,192.77,42.92]
[1761289962886,4.6662,192.84,192.77,42.92]
[1761289962887,7.2762,192.84,192.79,2.3642258]
[1761289963186,6.86938205,192.83,192.79,2.3642258]
[1761289963387,6.86938205,192.82,192.79,2.3642258]
[1761289963579,2.61,192.82,192.79,2.3642258]
[1761289964082,2.61,192.82,192.77,42.92]
[1761289964387,4.25983326,192.81,192.77,42.92]
[1761289964587,2.61,192.82,192.77,42.92]
[1761289964788,4.25983147,192.81,192.77,42.92]
[1761289964988,2.61,192.82,192.77,42.92]
[1761289965189,6.86983147,192.81,192.77,42.92]
[1761289965387,2.61,192.81,192.77,42.92]
[1761289965888,4.25953842,192.8,192.77,42.92]
[1761289966083,2.61,192.8,192.77,42.92]
[1761289966886,4.25917498,192.79,192.77,42.92]
[1761289967088,2.61,192.78,192.77,42.92]
[1761289967389,6.86925985,192.78,192.77,42.92]
[1761289968388,4.25925985,192.78,192.75,1.51483112]
[1761289968588,2.61,192.77,192.75,1.51483112]
[1761289968987,2.61,192.77,192.73,43.84274715]
[1761289969189,2.61,192.77,192.74,1.51483112]
[1761289970093,2.61,192.77,192.73,42.92]
[1761289970392,2.61,192.77,192.74,1.51483112]
[1761289971088,2.61,192.76,192.72,21.4]
[1761289971285,2.61,192.75,192.72,22.91483112]
[1761289971787,2.61,192.75,192.74,1.51483112]
[1761289971992,2.61,192.78,192.71,42.94]
[1761289972184,6.86623526,192.77,192.74,1.51483112]
[1761289972382,2.61,192.79,192.74,1.51483112]
[1761289972688,2.61,192.77,192.71,42.94]
[1761289972889,2.61,192.77,192.74,1.51483112]
[1761289974591,4.25444329,192.76,192.74,1.51483112]
[1761289974797,2.61,192.76,192.74,1.51483112]
[1761289980897,4.6681,192.77,192.75,1.51483112]
[1761289981097,2.6,192.76,192.75,1.51483112]
[1761289981987,4.6681,192.77,192.75,1.51483112]
[1761289982189,2.6,192.78,192.75,1.51483112]
[1761289982397,2.6,192.78,192.77,1.51483112]
[1761289982597,6.8344623,192.78,192.77,1.51483112]
[1761289984101,6.8344623,192.78,192.7,47.6094]
[1761289984307,6.8344623,192.77,192.76,1.51483112]
[1761289985807,2.6,192.8,192.76,1.51483112]
[1761289986001,2.6,192.8,192.78,1.51483112]
[1761289987010,7.2673,192.8,192.73,47.6087]
[1761289987208,2.6,192.79,192.77,1.51483112]
[1761289989009,2.6,192.78,192.77,1.51483112]
[1761289991015,2.6,192.78,192.72,4.6689]
[1761289991311,2.6,192.78,192.77,1.51483112]
[1761289992316,7.37328336,192.78,192.77,1.51483112]
[1761289993206,7.37328336,192.78,192.7,47.6095]
[1761289993207,2.6,192.77,192.75,1.51483112]
[1761289994713,4.6681,192.77,192.75,1.51483112]
[1761289995019,2.6,192.76,192.73,1.51483112]
[1761289995211,7.2688,192.74,192.73,1.51483112]
[1761289997024,7.2688,192.74,192.68,0.9029814]
[1761289997223,2.6,192.73,192.72,1.51483112]
[1761289997712,6.81985643,192.73,192.72,1.51483112]
[1761289999320,2.6,192.72,192.7,1.51483112]
[1761289999506,6.81985643,192.71,192.7,1.51483112]
[1761290002117,6.81985643,192.71,192.67,1.51483112]
[1761290002309,2.6,192.7,192.67,1.51483112]
[1761290004123,4.21676176,192.69,192.65,1.51483112]
[1761290004325,2.6,192.69,192.67,1.51483112]
[1761290007112,2.6,192.69,192.63,4.6712]
[1761290007323,2.6,192.69,192.66,1.51483112]
[1761290009026,2.6,192.69,192.63,4.6712]
[1761290009225,2.6,192.69,192.66,1.51483112]
[1761290009433,2.6,192.69,192.68,1.51483112]
[1761290009625,2.77,192.72,192.68,1.51483112]
[1761290009826,4.21474843,192.71,192.68,1.51483112]
[1761290010025,4.21474843,192.7,192.68,1.51483112]
[1761290010224,2.77,192.72,192.7,1.51483112]
[1761290010428,4.21546506,192.71,192.7,1.51483112]
[1761290012326,6.98546506,192.71,192.7,1.51483112]
[1761290012837,2.77,192.71,192.7,1.51483112]
[1761290013229,6.96882257,192.71,192.7,1.51483112]
[1761290015436,4.19882257,192.71,192.7,1.51483112]
[1761290015837,6.84882257,192.71,192.7,1.51483112]
[1761290016042,6.84882257,192.71,192.66,42.94]
[1761290016338,2.65,192.71,192.7,1.51483112]
[1761290016530,6.84912845,192.71,192.7,1.51483112]
[1761290021650,2.65,192.7,192.66,1.51483112]
[1761290022035,2.65,192.7,192.63,47.6112]
[1761290022250,2.65,192.68,192.65,1.51483112]
[1761290024144,2.65,192.68,192.62,0.90329782]
[1761290024454,2.65,192.68,192.65,1.51483112]
[1761290024953,2.65,192.71,192.67,1.51483112]
[1761290025148,2.65,192.71,192.7,1.51483112]
[1761290025349,6.84925729,192.71,192.7,1.51483112]
[1761290027144,6.84925729,192.71,192.66,42.94]
[1761290027349,2.65,192.71,192.7,1.51483112]
[1761290027546,6.85072907,192.71,192.7,1.51483112]
[1761290028651,6.85072907,192.71,192.67,2.36838526]
[1761290028839,2.65,192.71,192.67,2.36838526]
[1761290031144,4.20375884,192.7,192.67,2.36838526]
[1761290031350,2.65,192.71,192.67,2.36838526]
[1761290031548,4.20423615,192.7,192.67,2.36838526]
[1761290031745,2.65,192.71,192.67,2.36838526]
[1761290031946,6.85440581,192.7,192.67,2.36838526]
[1761290032148,2.65,192.7,192.66,42.94]
[1761290032463,2.65,192.7,192.67,2.36838526]
[1761290034253,4.20700391,192.69,192.67,2.36838526]
[1761290034459,2.65,192.7,192.67,2.36838526]
[1761290034655,4.20677356,192.69,192.67,2.36838526]
[1761290034958,2.65,192.7,192.67,2.36838526]
[1761290035162,4.20677179,192.69,192.67,2.36838526]
[1761290035458,2.65,192.7,192.67,2.36838526]
[1761290035652,4.20835938,192.69,192.67,2.36838526]
[1761290035959,2.65,192.7,192.67,2.36838526]
[1761290036157,6.85836294,192.69,192.67,2.36838526]
[1761290036360,2.65,192.69,192.67,2.36838526]
[1761290037963,2.65,192.69,192.67,45.30838526]
[1761290038158,4.19899111,192.68,192.67,2.36838526]
[1761290038358,4.19899111,192.68,192.67,45.30838526]
[1761290039458,4.19899111,192.68,192.67,2.36838526]
[1761290039654,4.19899111,192.68,192.67,45.30838526]
[1761290039859,4.19899111,192.68,192.66,2.36838526]
[1761290040066,2.65,192.69,192.65,4.6706]
[1761290040365,4.20124242,192.68,192.66,45.30838526]
[1761290040564,2.65,192.69,192.66,2.36838526]
[1761290040859,4.20127926,192.68,192.66,2.36838526]
[1761290041065,2.65,192.69,192.67,42.94]
[1761290041258,4.20153446,192.68,192.67,42.94]
[1761290041463,4.20153446,192.68,192.66,2.36838526]
[1761290041661,2.65,192.69,192.67,42.94]
[1761290041869,4.19368642,192.68,192.65,7.03898526]
[1761290042056,2.65,192.69,192.66,42.94]
[1761290042256,4.19366803,192.68,192.66,42.94]
[1761290042458,4.18032853,192.67,192.66,42.94]
[1761290044067,2.77,192.7,192.66,42.94]
[1761290044269,4.18130463,192.69,192.67,42.94]
[1761290044471,4.18130463,192.68,192.67,42.94]
[1761290048168,7.58842373,192.73,192.67,42.94]
[1761290048367,7.58842373,192.73,192.66,4.6704]
[1761290048368,11.58006985,192.72,192.66,4.6704]
[1761290048573,8.81006985,192.71,192.67,42.94]
[1761290048765,6.87565371,192.7,192.66,7.03878526]
[1761290048965,4.10565371,192.69,192.67,42.94]
[1761290049167,2.77,192.7,192.67,42.94]
[1761290049475,2.77,192.69,192.67,42.94]
[1761290051267,2.77,192.69,192.66,7.03878526]
[1761290051767,2.77,192.69,192.67,42.94]
[1761290051964,2.77,192.69,192.66,4.6704]
[1761290052278,2.77,192.69,192.67,42.94]
[1761290054677,4.70769212,192.71,192.66,2.36838526]
[1761290054876,4.00465093,192.7,192.67,42.94]
[1761290055068,2.77,192.72,192.68,42.94]
[1761290055272,11.48223289,192.71,192.68,42.94]
[1761290055472,4.00461725,192.7,192.68,42.94]
[1761290055673,2.77,192.71,192.69,42.94]
[1761290055878,6.77469825,192.7,192.69,42.94]
[1761290056484,6.77469825,192.7,192.66,7.03878526]
[1761290056679,4.24801092,192.72,192.66,7.03878526]
[1761290056680,2.77,192.73,192.66,7.03878526]
[1761290056878,12.96019073,192.72,192.66,7.03878526]
[1761290057185,8.71221027,192.71,192.66,7.03878526]
[1761290057388,4.00467094,192.7,192.66,7.03878526]
[1761290057578,4.24976608,192.72,192.66,7.03878526]
[1761290057885,8.71604645,192.71,192.66,7.03878526]
[1761290058185,4.0064355,192.7,192.66,7.03878526]
[1761290058484,7.01987784,192.72,192.66,7.03878526]
[1761290058686,8.71610062,192.71,192.66,7.03878526]
[1761290058886,4.00646063,192.7,192.66,7.03878526]
[1761290059186,2.77,192.72,192.66,7.03878526]
[1761290059386,8.71611965,192.71,192.67,42.94]
[1761290059578,4.00648452,192.7,192.68,42.94]
[1761290059779,7.01990088,192.72,192.66,7.03878526]
[1761290059980,8.71632374,192.71,192.66,7.03878526]
[1761290060183,4.0065634,192.7,192.67,42.94]
[1761290060385,2.77,192.71,192.67,42.94]
[1761290060587,4.0065062,192.7,192.67,42.94]
[1761290060881,2.77,192.71,192.66,7.03878526]
[1761290061187,4.00650543,192.7,192.67,4.6702]
[1761290061381,4.2499224,192.72,192.68,42.94]
[1761290061584,8.71624752,192.71,192.68,42.94]
[1761290061786,4.0065291,192.7,192.67,4.6702]
[1761290062086,2.77,192.73,192.69,42.94]
[1761290062287,6.77652768,192.72,192.69,42.94]
[1761290062590,4.00652768,192.71,192.67,4.6702]
[1761290062781,4.00652768,192.7,192.67,4.6702]
[1761290062980,2.77,192.72,192.68,42.94]
[1761290063289,4.00655709,192.71,192.69,42.94]
[1761290063483,4.00655709,192.7,192.69,42.94]
[1761290063787,2.77,192.75,192.69,42.94]
[1761290063989,2.77,192.75,192.67,4.6702]
[1761290063990,6.7772314,192.74,192.67,4.6702]
[1761290064184,6.7772314,192.73,192.68,42.94]
[1761290064393,4.0072314,192.72,192.68,42.94]
[1761290064690,2.77,192.73,192.67,4.6702]
[1761290064883,6.77672105,192.72,192.67,4.6702]
[1761290065084,2.77,192.75,192.68,42.94]
[1761290065284,6.77670646,192.74,192.68,42.94]
[1761290065486,6.77670646,192.73,192.68,42.94]
[1761290065681,4.00670646,192.72,192.67,4.6702]
[1761290065875,2.77,192.72,192.68,42.94]
[1761290066081,2.77,192.72,192.69,42.94]
[1761290066279,2.77,192.72,192.67,4.6702]
[1761290066588,2.77,192.72,192.68,4.6699]
[1761290067390,2.77,192.72,192.69,42.94]
[1761290067591,2.77,192.72,192.68,4.6699]
[1761290068292,2.77,192.72,192.69,42.94]
[1761290068588,2.77,192.72,192.7,42.94]
[1761290068782,2.77,192.72,192.68,4.6699]
[1761290069184,2.65,192.75,192.69,42.94]
[1761290069483,2.65,192.73,192.69,42.94]
[1761290069689,4.00574749,192.72,192.69,42.94]
[1761290069883,2.65,192.73,192.69,42.94]
[1761290070086,4.00574749,192.72,192.68,4.6699]
[1761290070290,2.65,192.73,192.69,42.94]
[1761290070492,4.00547177,192.72,192.69,42.94]
[1761290070683,2.65,192.73,192.68,4.6699]
[1761290070879,2.65,192.76,192.7,4.6695]
[1761290071083,6.65582109,192.75,192.71,42.94]
[1761290071283,4.00582109,192.74,192.71,42.94]
[1761290071486,2.65,192.75,192.7,4.6695]
[1761290071992,2.65,192.75,192.71,42.94]
[1761290072585,3.98196607,192.74,192.71,42.94]
[1761290072786,2.65,192.74,192.71,42.94]
[1761290073292,2.65,192.74,192.7,4.6695]
[1761290073496,2.65,192.77,192.71,42.94]
[1761290073792,2.65,192.75,192.71,42.94]
[1761290075088,2.65,192.78,192.71,2.36838526]
[1761290075288,6.63099912,192.77,192.72,42.94]
[1761290075486,2.65,192.76,192.72,42.94]
[1761290075689,2.65,192.76,192.71,2.36838526]
[1761290075991,2.65,192.76,192.73,42.94]
[1761290076592,2.65,192.76,192.72,4.6689]
[1761290076892,2.65,192.76,192.73,42.94]
[1761290077493,2.65,192.76,192.72,4.6689]
[1761290077688,2.65,192.76,192.73,42.94]
[1761290077888,6.62780725,192.79,192.73,42.94]
[1761290078199,2.65,192.77,192.74,42.94]
[1761290079695,2.65,192.77,192.72,4.6689]
[1761290079895,2.65,192.77,192.74,42.94]
[1761290080189,4.6669,192.81,192.74,42.94]
[1761290080394,6.6262173,192.8,192.74,42.94]
[1761290080592,3.9762173,192.79,192.74,45.30838526]
[1761290080796,2.65,192.79,192.74,45.30838526]
[1761290080996,2.65,192.79,192.75,42.92]
[1761290081397,2.65,192.79,192.76,2.36838526]
[1761290081598,3.97599058,192.8,192.76,2.36838526]
[1761290081801,2.65,192.8,192.76,2.36838526]
[1761290082000,2.65,192.8,192.76,4.6681]
[1761290083296,2.65,192.8,192.76,47.5881]
[1761290086807,2.65,192.79,192.76,47.5881]
[1761290089899,2.65,192.79,192.76,4.6681]
[1761290090306,2.65,192.77,192.69,2.36838526]
[1761290090596,2.65,192.73,192.62,0.90329782]
[1761290090805,2.65,192.71,192.63,42.92]
[1761290091002,4.16672754,192.71,192.63,42.92]
[1761290091705,2.65,192.7,192.63,42.92]
[1761290091910,2.65,192.68,192.63,42.92]
[1761290092303,2.65,192.68,192.62,0.90329782]
[1761290092503,2.65,192.68,192.63,42.92]
[1761290093301,2.65,192.68,192.62,0.90329782]
[1761290093506,2.65,192.68,192.62,43.82329782]
[1761290093699,1.51672754,192.67,192.62,43.82329782]
[1761290093901,2.65,192.66,192.62,43.82329782]
[1761290094310,2.65,192.66,192.62,0.90329782]
[1761290099126,2.65,192.66,192.58,4.6724]
[1761290099424,2.65,192.66,192.59,43.84346197]
[1761290100528,2.65,192.66,192.59,0.90346197]